Workbook

Sheet Validation (hidden)
C4: All approved pricing is subject to final credit approval
C5: Professional services with a price of $1 - require a quote- purchase price is not $1.
C6: The attached pricing has been specifically approved for the stated entity only. This pricing shall not be offered or extended to any subsidiary, member, affiliate or any other entity, except for the specific entity stated herein, without the prior written consent of Konica Minolta Business Solutions U.S.A., Inc. This is true regardless and irrespective of any and all terms and conditions contained in any past, current or future agreements, which may conflict with this statement.
C7: Delivery & Basic Network Services are not included in any prices provided. They must be billed separately.
C8: Delivery & Basic Network Services for existing Key Acccount is to be handled in accordance with the terms of the master agreement.
C9: Price Exceptions are valid to make offers for 90 days. Beyond 90 days, a master agreement must be signed by the customer in accordance with the specific terms and conditions of the approved price exception. If master agreement already exists, then a signed schedule B must be provided to Contract Group within 90 days of price exception issuance.
C10: This is a one time exception , valid for this deal with these machine only.
C11: This pricing will be honored by Konica Minolta has a result of the customer signing an agreement acknowledging Konica Minolta as their sole contract provider
C12: Lease pricing is based on Fair Market Value rates
C13: Lease pricing is based on $1 out rates
C14: The attached service pricing for all production print models is provided predicated on 11x17 as a single click.
C15: A certificate of insurance will be provided upon award of a contract.
C16: This aggregate service pricing is only for the model types, quantities listed and volume provided as shown on this price schedule. Any variations regarding model type, quantities or volume from this price schedule may impact pricing and therefore require further price review before providing to customer. Any additional quantities or models needed by this customer beyond this initial agreed to quantity would need to be reviewed financially before adding at the same rate.
C17: Orders that do not match the pricing and terms of this opportunity profile will not be accepted.
C18: No cancellation privileges apply
C19: This contract is non-cancelable
C20: Cancellation for non-appropriation of funding is allowed
C21: Cancellation for non-performance is allowed
C22: Termination for convenience shall pertain only to ongoing contract placements only. Any machine installed prior to the date of termination shall remain in place for the balance of their respective contract terms. The customer shall continue to be contractually and financially responsible for such current leases, rentals and maintenance agreements.
C23: The customer will be allowed to cancel up to 10% of the aggregate lease amount, over term of this agreement for upgrade / downgrade or office closure.
C24: This is non-coterminous pricing. All machines must remain in place for a full term regardless of date of installation.
C25: This is coterminous pricing. All units will be removed on the same date regardless of date of installation. Add-on equipment will be priced based on the remaining term at the time of installation
C26: Any model not included on the attached approved price exception or any changes to approved prices provided will require a new price exception.
C27: This CPC with minimum is based on the customer making the designated number of copies per month. Billing will be for the copies made with the designated minimum copies per month
C28: Delivery & Basic Network Services are included in the prices provided. They do not need to billed separately.
C29: Effective April 1, 2011, in order to qualify for KMPF rebate or special financing promotions, pricing for the entire transaction must be at Field Level Pricing. Approved Bid Desk Level Pricing will not qualify for rebates or special financing promotions unless otherwise stated. Please see actual promotion Terms and Conditions for additional qualifiers.

Sheet Approved Pricing Old (hidden)

Sheet MS Price List
G1: 0.03757 | H1: 0.02965 | I1: 0.02503
B4: STATE OF MISSISSIPPI
B5: RFx: 3130001730
B6: Effective 5/1/23 - 4/30/24
B7: Item Number | C7: Item Description | D7: List Price | E7: MS Purchase | F7: Discount from List | G7: 36-Months | H7: 48-Months | I7: 60-Months
B9: ACER011 | C9: bizhub 4020i 42 PPM MONO AIO- Includes PS, PCL, and XPS Controller, Wireless Network Interface, Automatic Duplex Unit, 50-sheet Automatic Document Feeder, 250 Sheets Paper Capacity, 256 MB Standard Memory, Hi-Speed USB 2.0, 8K Starter Toner Cartridge, 50K Imaging Unit. | D9: 836 | E9: 501.6 | F9: =100%-(E9/D9) -> 0.4
B10: Optional Accessories
B11: PAPER HANDLING OPTIONS:
B12: ACEVWY1 | C12: PF-P23 PAPER TRAY (250-SHEET CAPACITY) | D12: 191 | E12: 124.15 | F12: =100%-(E12/D12) -> 0.35
B13: ACEWWY1 | C13: PF-P24 PAPER TRAY (520-SHEET CAPACITY) | D13: 290 | E13: 188.5 | F13: =100%-(E13/D13) -> 0.35
B14: OTHER OPTIONS AND ACCESSORIES:
B15: W25015120 | C15: SINGLE OUTLET PWRFILTER 120V/15A | D15: 49 | E15: 43.485 | F15: 0.1125510204
B16: EH91539 | C16: CS-2 CONVENIENCE STAPLER | D16: 329 | E16: 212.3 | F16: 0.3547112462
B19: ACEU011 | C19: bizhub 5020i 52 PPM MONO AIO-Includes PS, PCL, and XPS Controller, Wireless Network Interface, Automatic Duplex Unit, 80-sheet Dual Scan Document Feeder, 520 Sheets Paper Capacity, 1 GB Standard Memory, Hi-Speed USB 2.0, 8K Starter Toner Cartridge, 50K Imaging Unit. | D19: 2011 | E19: 1206.6 | F19: 0.4
B20: Optional Accessories
B21: PAPER HANDLING OPTIONS:
B22: ACEVWY1 | C22: PF-P23 PAPER TRAY (250-SHEET CAPACITY) | D22: 191 | E22: 124.15 | F22: 0.35
B23: ACEWWY1 | C23: PF-P24 PAPER TRAY (520-SHEET CAPACITY) | D23: 290 | E23: 188.5 | F23: 0.35
B24: OTHER OPTIONS AND ACCESSORIES: | E24: 0
B25: W25015120 | C25: SINGLE OUTLET PWRFILTER 120V/15A | D25: 49 | E25: 43.485 | F25: 0.1125510204
B26: EH91539 | C26: CS-2 CONVENIENCE STAPLER | D26: 329 | E26: 212.3 | F26: 0.3547112462
B28: ACTA011 | C28: bizhub 4700i 50 ppm mono A4 SFP | D28: 1595 | E28: 957 | F28: 0.4
B29: Optional Accessories
B30: PAPER SUPPLY OPTIONS:
B31: AAJUW13 | C31: PF-P21 | D31: 374 | E31: 222.66 | F31: 0.4046524064
B32: AAJUW12 | C32: PF-P25 HEIGHT ADJUSTMENT UNIT | D32: 374 | E32: 222.66 | F32: 0.4046524064
B33: 135900 | C33: DK-P05 COPY DESK | D33: 375 | E33: 194 | F33: 0.4826666667
B34: OUTPUT OPTIONS
B35: ACCGWY1 | C35: FS-P04 OFF LINE STAPLER | D35: 299 | E35: 195.807625 | F35: 0.345125
B36: EH91539 | C36: CS-2 CONVENIENCE STAPLER | D36: 329 | E36: 212.3 | F36: 0.3547112462
B37: AUTHENTICATION OPTIONS:
B38: A0X9WY1 | C38: AU-102 Biometric Authentication Unit | D38: 1042 | E38: 449 | F38: 0.5690978887
B39: 7640013468 | C39: AU-204H MagStripe CARD READER | D39: 129.99 | E39: 61.09 | F39: 0.5300407724
B40: R5427011136466GEN2 | C40: AU-205HGEN2 SQ-2020-94643 | D40: 399 | E40: 219.45
B41: ACCKWY1 | C41: MK-P08 MOUNT KIT | D41: 95 | E41: 56.32 | F41: 0.4071578947
B42: MISC. OPTIONS:
B43: ACDMWY2 | C43: UPGRADE KIT UK-221 | D43: 286 | E43: 123.1234654 | F43: 0.5694983727
B44: ACCRWY1 | C44: WT-P03 WORKING TABLE | D44: 120 | E44: 56.823 | F44: 0.526475
B45: ACCTWY1 | C45: EK-P08 LOCAL INTERFACE KIT | D45: 220 | E45: 94.71 | F45: 0.5695
B46: ACCVWY1 | C46: EK-P09 LOCAL INTERFACE KIT W/ BLUETOOTH | D46: 307 | E46: 132.11 | F46: 0.5696742671
B47: ACCHWY1 | C47: EK-P10 LOCAL INTERFACE KIT | D47: 97 | E47: 67.9 | F47: 0.3
B48: ACCEWY1 | C48: KP-P03 KEYPAD (7" PANEL) | D48: 139 | E48: 66.19047619 | F48: 0.5238095238
B49: G844100LCMUS2 | C49: EXTERNAL KEYBOARD | D49: 222.6 | E49: 106 | F49: 0.5238095238
B50: ACCFWY1 | C50: KH-P02 KEYBOARD HOLDER | D50: 136 | E50: 80.55 | F50: 0.4077205882
B51: P250315120SIG | C51: IP ENABLED INTRFC WSIGSENSE MOD 120V/15A | D51: 800 | E51: 430.94 | F51: 0.461325
B52: PROFESSIONAL SERVICES:
B53: 7640020786 | C53: BIZHUB SECURE PLATINUM SMALL MFP | D53: 299 | E53: 209.3 | F53: 0.3
B54: 7640019485 | C54: KMBS PROFESSIONAL PROJECT SERVICES | D54: 1 | E54: 0.9925 | F54: 0.0075
B55: 7640018460 | C55: NETWORKING FEE | D55: 1 | E55: 0.9925 | F55: 0.0075
B57: ACT9011 | C57: bizhub 4050i 42 ppm mono A4 MFP | D57: 3849 | E57: 2309.4 | F57: 0.4
B58: Optional Accessories
B59: PAPER SUPPLY OPTIONS:
B60: AAJUW13 | C60: PF-P21 | D60: 374 | E60: 222.66 | F60: 0.4046524064
B61: AAJUW12 | C61: PF-P25 HEIGHT ADJUSTMENT UNIT | D61: 374 | E61: 222.66 | F61: 0.4046524064
B62: 135900 | C62: DK-P05 COPY DESK | D62: 375 | E62: 194 | F62: 0.4826666667
B63: OUTPUT OPTIONS
B64: ACCGWY1 | C64: FS-P04 OFF LINE STAPLER | D64: 299 | E64: 195.807625 | F64: 0.345125
B65: EH91539 | C65: CS-2 CONVENIENCE STAPLER | D65: 329 | E65: 212.3 | F65: 0.3547112462
B66: i-Option ACCESSORIES
B67: A0PD117 | C67: LK-104 V3 I-OPTION VOICE GUIDANCE | D67: 785 | E67: 371.74 | F67: 0.5264458599
B68: A0PD119 | C68: LK-106 I-OPTION BAR CODE FONT | D68: 821 | E68: 388.79 | F68: 0.5264433618
B69: A0PD11F | C69: LK-107 I-OPTION UNICODE FONT | D69: 690 | E69: 326.75 | F69: 0.5264492754
B70: A0PD11G | C70: LK-108 I-OPTION OCR FONT | D70: 191 | E70: 90.45 | F70: 0.5264397906
B71: A0PD11U | C71: LK-110 V2 I-OPTION OOXML ENHANCED PDF | D71: 667.8 | E71: 414.33 | F71: 0.3795597484
B72: A0PD11K | C72: LK-111 I-OPTION THIN PRINT | D72: 250 | E72: 118.39 | F72: 0.52644
B73: A0PDAA1 | C73: LK-116 - LICENSE | D73: 395 | E73: 187.05 | F73: 0.5264556962
B74: AUTHENTICATION OPTIONS:
B75: R5427011136466GEN2 | C75: AU-205HGEN2 SQ-2020-94643 | D75: 399 | E75: 219.45 | F75: 0.45
B76: ACCKWY1 | C76: MK-P08 MOUNT KIT | D76: 95 | E76: 56.32 | F76: 0.4071578947
B77: A0X9WY1 | C77: AU-102 Biometric Authentication Unit | D77: 1042 | E77: 449 | F77: 0.5690978887
B78: 7640013468 | C78: AU-204H MagStripe CARD READER | D78: 129.99 | E78: 61.09 | F78: 0.5300407724
B79: MISC. OPTIONS:
B80: AA1K011 | C80: FK-517 FAX KIT | D80: 263 | E80: 124.537075 | F80: 0.526475
B81: ACCNWY1 | C81: UK-P19 DOUBLE FEED DETECTION KIT | D81: 120 | E81: 56.823 | F81: 0.526475
B82: G844100LCMUS2 | C82: EXTERNAL KEYBOARD | D82: 222.6 | E82: 106 | F82: 0.5238095238
B83: ACCFWY1 | C83: KH-P02 KEYBOARD HOLDER | D83: 136 | E83: 80.55 | F83: =100%-(E83/D83) -> 0.4077205882
B84: ACCTWY1 | C84: EK-P08 LOCAL INTERFACE KIT | D84: 220 | E84: 94.71 | F84: 0.5695
B85: ACCVWY1 | C85: EK-P09 LOCAL INTERFACE KIT W/ BLUETOOTH | D85: 307 | E85: 132.11 | F85: 0.5696742671
B86: ACCRWY1 | C86: WT-P03 WORKING TABLE | D86: 120 | E86: 56.823 | F86: 0.526475
B87: ACCJWY1 | C87: KP-102 KEYPAD (10" PANEL) | D87: 139 | E87: 59.67 | F87: 0.5707194245
B88: P250315120SIG | C88: IP ENABLED INTRFC WSIGSENSE MOD 120V/15A | D88: 800 | E88: 430.94 | F88: 0.461325
B89: W100015120 | C89: PWRFILTER WNOISE &SURGE PROTECT 120V/15A | D89: 265 | E89: 103.96 | F89: 0.6076981132
B90: ACDJWY1 | C90: EM-908 1 TB SSD | D90: 934 | E90: 470.4787412 | F90: 0.4962754377
B91: PROFESSIONAL SERVICES:
B92: 7640015657 | C92: BIZHUB SECURE | D92: 250 | E92: 248.125 | F92: 0.0075
B93: 7640019024 | C93: BIZHUB SECURE HEALTHCARE | D93: 400 | E93: 397 | F93: 0.0075
B94: 7640020787 | C94: BIZHUB SECURE PLATINUM | D94: 499 | E94: 495.26 | F94: 0.00749498998
B95: 7640019485 | C95: KMBS PROFESSIONAL PROJECT SERVICES | D95: 1 | E95: 0.9925 | F95: 0.0075
B96: 7640018460 | C96: NETWORKING FEE | D96: 1 | E96: 0.9925 | F96: 0.0075
B98: ACT8011 | C98: bizhub 4750i 50 ppm mono A4 MFP | D98: 4619 | E98: 2749.820125 | F98: 0.4046719799
B99: Optional Accessories
B100: PAPER SUPPLY OPTIONS:
B101: AAJUW13 | C101: PF-P21 | D101: 374 | E101: 222.66 | F101: 0.4046524064
B102: AAJUW12 | C102: PF-P25 HEIGHT ADJUSTMENT UNIT | D102: 374 | E102: 222.66 | F102: 0.4046524064
B103: 135900 | C103: DK-P05 COPY DESK | D103: 375 | E103: 194 | F103: 0.4826666667
B104: OUTPUT OPTIONS
B105: ACCGWY1 | C105: FS-P04 OFF LINE STAPLER | D105: 299 | E105: 195.807625 | F105: 0.345125
B106: EH91539 | C106: CS-2 CONVENIENCE STAPLER | D106: 329 | E106: 212.3 | F106: 0.3547112462
B107: i-Option ACCESSORIES
B108: A0PD117 | C108: LK-104 V3 I-OPTION VOICE GUIDANCE | D108: 785 | E108: 371.7381552 | F108: 0.52644821
B109: A0PD119 | C109: LK-106 I-OPTION BAR CODE FONT | D109: 821 | E109: 388.7860196 | F109: 0.52644821
B110: A0PD11F | C110: LK-107 I-OPTION UNICODE FONT | D110: 690 | E110: 326.7507351 | F110: 0.52644821
B111: A0PD11G | C111: LK-108 I-OPTION OCR FONT | D111: 191 | E111: 90.44839189 | F111: 0.52644821
B112: A0PD11U | C112: LK-110 V2 I-OPTION OOXML ENHANCED PDF | D112: 667.8 | E112: 414.33 | F112: 0.3795597484
B113: A0PD11K | C113: LK-111 I-OPTION THIN PRINT | D113: 250 | E113: 118.3879475 | F113: 0.52644821
B114: A0PDAA1 | C114: LK-116 - LICENSE | D114: 395 | E114: 187.052957 | F114: 0.52644821
B115: AUTHENTICATION OPTIONS:
B116: R5427011136466GEN2 | C116: AU-205HGEN2 SQ-2020-94643 | D116: 399 | E116: 219.45 | F116: 0.45
B117: ACCKWY1 | C117: MK-P08 MOUNT KIT | D117: 95 | E117: 56.32 | F117: 0.4071578947
B118: A0X9WY1 | C118: AU-102 Biometric Authentication Unit | D118: 1042 | E118: 449 | F118: 0.5690978887
B119: 7640013468 | C119: AU-204H MagStripe CARD READER | D119: 129.99 | E119: 61 | F119: 0.5307331333
B120: MISC. OPTIONS:
B121: ACCNWY1 | C121: UK-P19 DOUBLE FEED DETECTION KIT | D121: 120 | E121: 56.823 | F121: 0.526475
B122: G844100LCMUS2 | C122: EXTERNAL KEYBOARD | D122: 222.6 | E122: 106 | F122: 0.5238095238
B123: ACCFWY1 | C123: KH-P02 KEYBOARD HOLDER | D123: 136 | E123: 80.55 | F123: 0.4077205882
B124: ACCTWY1 | C124: EK-P08 LOCAL INTERFACE KIT | D124: 220 | E124: 94.705 | F124: 0.5695227273
B125: ACCVWY1 | C125: EK-P09 LOCAL INTERFACE KIT W/ BLUETOOTH | D125: 307 | E125: 132.11 | F125: 0.5696742671
B126: ACCRWY1 | C126: WT-P03 WORKING TABLE | D126: 120 | E126: 56.823 | F126: 0.526475
B127: ACCJWY1 | C127: KP-102 KEYPAD (10" PANEL) | D127: 139 | E127: 59.67 | F127: 0.5707194245
B128: P250315120SIG | C128: IP ENABLED INTRFC WSIGSENSE MOD 120V/15A | D128: 800 | E128: 430.94 | F128: 0.461325
B129: W100015120 | C129: PWRFILTER WNOISE &SURGE PROTECT 120V/15A | D129: 265 | E129: 103.96 | F129: 0.6076981132
B130: ACDJWY1 | C130: EM-908 1 TB SSD | D130: 934 | E130: 470.4787412 | F130: 0.4962754377
B131: PROFESSIONAL SERVICES:
B132: 7640015657 | C132: BIZHUB SECURE | D132: 250 | E132: 248.13 | F132: 0.00748
B133: 7640019024 | C133: BIZHUB SECURE HEALTHCARE | D133: 400 | E133: 397 | F133: 0.0075
B134: 7640020787 | C134: BIZHUB SECURE PLATINUM | D134: 499 | E134: 495.26 | F134: 0.00749498998
B135: 7640019485 | C135: KMBS PROFESSIONAL PROJECT SERVICES | D135: 1 | E135: 0.9925 | F135: 0.0075
B136: 7640018460 | C136: NETWORKING FEE | D136: 1 | E136: 1 | F136: 0
B140: A93E011 | C140: bizhub C3350i A4 COPIER/PRINTER - Includes PS, PCL & XPS Controller, 5 GB Standard Memory , 256 GB SSD, Stapler Finisher, Standard Gigabit Ethernet, Wireless Connectivity, Duplex Unit, 50-sheet Dual Scan Document Feeder, Standard USB 2.0 (supports local printing), CMYK Toner (Yield: 13K black, 9K CMY) and Imaging Units (Yield: 200K black, 100K Color) . | D140: 4851 | E140: 2310.0462 | F140: 0.5238
B141: Optional Accessories
B142: PAPER SUPPLY OPTIONS: Select one
B143: AAJUW13 | C143: PF-P21 | D143: 374 | E143: 222.66 | F143: 0.4046524064
B144: AAJUW12 | C144: PF-P25 HEIGHT ADJUSTMENT UNIT | D144: 374 | E144: 222.66 | F144: 0.4046524064
B145: 135900 | C145: DK-P05 COPY DESK | D145: 375 | E145: 194 | F145: 0.4826666667
B146: OUTPUT OPTIONS:
B147: ACCGWY1 | C147: FS-P04 OFF LINE STAPLER | D147: 299 | E147: 195.807625 | F147: 0.345125
B148: EH91539 | C148: CS-2 CONVENIENCE STAPLER | D148: 329 | E148: 212.3 | F148: 0.3547112462
B149: i-OPTION ACCESSORIES:
B150: A0PD117 | C150: LK-104 V3 I-OPTION VOICE GUIDANCE | D150: 785 | E150: 371.74 | F150: 0.5264458599
B151: A0PD119 | C151: LK-106 I-OPTION BAR CODE FONT | D151: 821 | E151: 388.79 | F151: 0.5264433618
B152: A0PD11F | C152: LK-107 I-OPTION UNICODE FONT | D152: 690 | E152: 326.75 | F152: 0.5264492754
B153: A0PD11G | C153: LK-108 I-OPTION OCR FONT | D153: 191 | E153: 90.45 | F153: 0.5264397906
B154: A0PD11U | C154: LK-110 V2 I-OPTION OOXML ENHANCED PDF | D154: 667.8 | E154: 414.33 | F154: 0.3795597484
B155: A0PD11K | C155: LK-111 I-OPTION THIN PRINT | D155: 250 | E155: 118.39 | F155: 0.52644
B156: A0PDAA1 | C156: LK-116 - LICENSE | D156: 395 | E156: 187.05 | F156: 0.5264556962
B157: CARD READERS
B158: A0X9WY1 | C158: AU-102 Biometric Authentication Unit | D158: 1042 | E158: 449 | F158: 0.5690978887
B159: 7640013468 | C159: AU-204H MagStripe CARD READER | D159: 129.99 | E159: 61.09 | F159: 0.5300407724
B160: R5427011136466GEN2 | C160: AU-205HGEN2 SQ-2020-94643 | D160: 399 | E160: 219.45 | F160: =100%-(E160/D160) -> 0.45
B161: ACCKWY1 | C161: MK-P08 MOUNT KIT | D161: 95 | E161: 56.32 | F161: 0.4071578947
B162: MISC. OPTIONS:
B163: AA1K011 | C163: FK-517 FAX KIT | D163: 263 | E163: 124.537075 | F163: 0.526475
B164: ACCNWY1 | C164: UK-P19 DOUBLE FEED DETECTION KIT | D164: 120 | E164: 56.823 | F164: 0.526475
B165: G844100LCMUS2 | C165: EXTERNAL KEYBOARD | D165: 222.6 | E165: 106 | F165: 0.5238095238
B166: ACCFWY1 | C166: KH-P02 KEYBOARD HOLDER | D166: 136 | E166: 80.55 | F166: 0.4077205882
B167: ACCTWY1 | C167: EK-P08 LOCAL INTERFACE KIT | D167: 220 | E167: 94.71 | F167: 0.5695
B168: ACCVWY1 | C168: EK-P09 LOCAL INTERFACE KIT W/ BLUETOOTH | D168: 307 | E168: 132.11 | F168: 0.5696742671
B169: ACCRWY1 | C169: WT-P03 WORKING TABLE | D169: 120 | E169: 56.823 | F169: 0.526475
B170: ACCJWY1 | C170: KP-102 KEYPAD (10" PANEL) | D170: 139 | E170: 59.67 | F170: 0.5707194245
B171: W100015120 | C171: PWRFILTER WNOISE &SURGE PROTECT 120V/15A | D171: 265 | E171: 103.96 | F171: 0.6076981132
B172: P250315120SIG | C172: IP ENABLED INTRFC WSIGSENSE MOD 120V/15A | D172: 800 | E172: 430.94 | F172: 0.461325
B173: PROFESSIONAL SERVICES:
B174: 7640015657 | C174: BIZHUB SECURE | D174: 250 | E174: 248.13 | F174: 0.00748
B175: 7640019024 | C175: BIZHUB SECURE HEALTHCARE | D175: 400 | E175: 397 | F175: 0.0075
B176: 7640020787 | C176: BIZHUB SECURE PLATINUM | D176: 499 | E176: 495.26 | F176: 0.00749498998
B177: 7640019485 | C177: KMBS PROFESSIONAL PROJECT SERVICES | D177: 1 | E177: 0.9925 | F177: 0.0075
B178: 7640018460 | C178: NETWORKING FEE | D178: 1 | E178: 0.9925 | F178: 0.0075
B180: AAJN011 | C180: bizhub C4050i A4 COPIER/PRINTER - -- Includes PS, PCL & XPS Controller, 5 GB Standard Memory , 256 GB SSD, Standard Super G3 Fax, Standard Gigabit Ethernet, Wireless Connectivity, Duplex Unit, 50-sheet Dual Scan Document Feeder, Standard USB 2.0 (supports local printing), CMYK Toner (Yield: 13K black, 9K CMY) and Imaging Units (Yield: 200K black, 100K Color) . | D180: 6583 | E180: 3134.8246 | F180: 0.5238
B181: Optional Accessories
B182: PAPER SUPPLY OPTIONS: Select one
B183: AAJUW13 | C183: PF-P21 | D183: 374 | E183: 222.66 | F183: 0.4046524064
B184: AAJUW12 | C184: PF-P25 HEIGHT ADJUSTMENT UNIT | D184: 374 | E184: 222.66 | F184: 0.4046524064
B185: 135900 | C185: DK-P05 COPY DESK | D185: 375 | E185: 194 | F185: 0.4826666667
B186: OUTPUT OPTIONS:
B187: ACCGWY1 | C187: FS-P04 OFF LINE STAPLER | D187: 299 | E187: 195.807625 | F187: 0.345125
B188: EH91539 | C188: CS-2 CONVENIENCE STAPLER | D188: 329 | E188: 212.3 | F188: 0.3547112462
B189: i-OPTION ACCESSORIES:
B190: A0PD117 | C190: LK-104 V3 I-OPTION VOICE GUIDANCE | D190: 785 | E190: 371.74 | F190: 0.5264458599
B191: A0PD119 | C191: LK-106 I-OPTION BAR CODE FONT | D191: 821 | E191: 388.79 | F191: 0.5264433618
B192: A0PD11F | C192: LK-107 I-OPTION UNICODE FONT | D192: 690 | E192: 326.75 | F192: 0.5264492754
B193: A0PD11G | C193: LK-108 I-OPTION OCR FONT | D193: 191 | E193: 90.45 | F193: 0.5264397906
B194: A0PD11U | C194: LK-110 V2 I-OPTION OOXML ENHANCED PDF | D194: 667.8 | E194: 414.33 | F194: 0.3795597484
B195: A0PD11K | C195: LK-111 I-OPTION THIN PRINT | D195: 250 | E195: 118.39 | F195: 0.52644
B196: A0PDAA1 | C196: LK-116 - LICENSE | D196: 395 | E196: 187.05 | F196: 0.5264556962
B197: CARD READERS
B198: A0X9WY1 | C198: AU-102 Biometric Authentication Unit | D198: 1042 | E198: 449 | F198: 0.5690978887
B199: 7640013468 | C199: AU-204H MagStripe CARD READER | D199: 129.99 | E199: 61.09 | F199: 0.5300407724
B200: R5427011136466GEN2 | C200: AU-205HGEN2 SQ-2020-94643 | D200: 399 | E200: 219.45 | F200: 0.45
B201: ACCKWY1 | C201: MK-P08 MOUNT KIT | D201: 95 | E201: 56.32 | F201: 0.4071578947
B202: MISC. OPTIONS:
B203: ACCNWY1 | C203: UK-P19 DOUBLE FEED DETECTION KIT | D203: 120 | E203: 56.823 | F203: 0.526475
B204: G844100LCMUS2 | C204: EXTERNAL KEYBOARD | D204: 222.6 | E204: 106 | F204: 0.5238095238
B205: ACCFWY1 | C205: KH-P02 KEYBOARD HOLDER | D205: 136 | E205: 80.55 | F205: 0.4077205882
B206: ACCTWY1 | C206: EK-P08 LOCAL INTERFACE KIT | D206: 220 | E206: 94.71 | F206: 0.5695
B207: ACCVWY1 | C207: EK-P09 LOCAL INTERFACE KIT W/ BLUETOOTH | D207: 307 | E207: 132.11 | F207: 0.5696742671
B208: ACCRWY1 | C208: WT-P03 WORKING TABLE | D208: 120 | E208: 56.823 | F208: 0.526475
B209: ACCJWY1 | C209: KP-102 KEYPAD (10" PANEL) | D209: 139 | E209: 59.67 | F209: 0.5707194245
B210: W100015120 | C210: PWRFILTER WNOISE &SURGE PROTECT 120V/15A | D210: 265 | E210: 103.96 | F210: 0.6076981132
B211: P250315120SIG | C211: IP ENABLED INTRFC WSIGSENSE MOD 120V/15A | D211: 800 | E211: 430.94 | F211: 0.461325
B212: PROFESSIONAL SERVICES:
... 2237 more rows

Sheet Solutions
E1: 0.0075
B3: State of Mississippi - Solutions
B4: Solutions can be lease, please contact local sales for a quote
B6: Item Number | C6: Description | D6: List Price | E6: MS Price
B7: Dispatcher Paragon 1 - 99
B8: ACC4A00 | C8: PARAGONSUITE1-49 | D8: 511.55 | E8: 469.05
B9: ACC4A0C | C9: PARAGONSUITE50+ | D9: 424.28 | E9: 388.1
B10: ACC4A10 | C10: REPORTING+NO EMB1-49 | D10: 22.94 | E10: 21.07
B11: ACC4A1C | C11: REPORTING+NO EMB50+ | D11: 18.36 | E11: 16.79
B12: Dispatcher Paragon SW Support Maintenance - 1 year, Silver SLA (1-199)
B13: ACC4A9D | C13: PARAGONSUITE+SLV_1YRSW-EXT1-49 | D13: 102.32 | E13: 89.3475
B14: ACC4A9T | C14: PARAGONSUITE+SLV_1YRSW-EXT50+ | D14: 84.26 | E14: 73.511
B15: ACC4AAD | C15: REPORTING+SLV_1YRSW-EXT+NO EMB1-49 | D15: 4.21 | E15: 4.21
B16: ACC4AAT | C16: REPORTING+SLV_1YRSW-EXT+NO EMB50+ | D16: 3.37 | E16: 3.37
B17: Dispatcher Paragon SW Support Maintenance - 1 year, Gold SLA (1-199)
B18: ACC4AC0 | C18: PARAGONSUITE+GLD_1YRSW-EXT1-49 | D18: 162.49 | E18: 142.5
B19: ACC4ACC | C19: PARAGONSUITE+GLD_1YRSW-EXT50+ | D19: 135.4 | E19: 117.6195
B20: ACC4AD0 | C20: REPORTING+GLD_1YRSW-EXT+NO EMB1-49 | D20: 18.6 | E20: 16.169
B21: ACC4ADC | C21: REPORTING+GLD_1YRSW-EXT+NO EMB50+ | D21: 15.28 | E21: 13.3475
B22: Card Readers
B23: R5427011136466GEN2 | C23: AU-205HGEN2 SQ-2020-94643 | D23: 399 | E23: 379.05
B24: RDR80581AKU | C24: PCPROX PLUS ENROLL BLACK USB READER KBW | D24: 399 | E24: 199.5
B25: RDR80081AKU | C25: PCPROX PLUS ENROLL W/ICLASS ID KBW | D25: 399 | E25: 200
B26: Installation | C26: INSTALLATION RELYCO TROY PRINTERS
B27: ACC4D19 | C27: TECHNICAL CONSULTANT DAILY FEE | D27: 2166.57 | E27: 1615
B28: ACC4D1A | C28: TECHNICAL CONSULTANT HOURLY FEE | D28: 337.03 | E28: 256.5
B29: 7640019485 | C29: KMBS PROFESSIONAL PROJECT SERVICES | D29: 1 | E29: 1
B30: Dispatcher Paragon Device Licenses including 1st year SW support, Silver SLA, (200-499)
B31: ACC4G00 | C31: PARAGONSUITE+SLV_1YR200-499 | D31: 258.51 | E31: 356.25
B32: Dispatcher Paragon Device Licenses including 1st year SW support, Gold SLA, (200-4000+)
B33: ACC4G2A | C33: PARAGONSUITE+GLD_1YR200+ | D33: 315.96 | E33: 435.4135
B34: ACC4G3A | C34: REPORTING+GLD_1YR+NO EMB200+ | D34: 26.43 | E34: 36.4135
B35: Dispatcher Paragon SW Support Maintenance - 1 year, Silver SLA (200-499)
B36: ACC4G1H | C36: PARAGONSUITE+SLV_1YRSW-EXT200-499 | D36: 77.55 | E36: 64.125
B37: Dispatcher Paragon SW Support Maintenance - 1 year, Gold SLA (200-4000+)
B38: ACC4G72 | C38: PARAGONSUITE+GLD_1YRSW-EXT200+ | D38: 135 | E38: 111.625
B39: ACC4G82 | C39: REPORTING+GLD_1YRSW-EXT+NO EMB200+ | D39: 13.21 | E39: 10.925
B40: Card Readers
B41: R5427011136466GEN2 | C41: AU-205HGEN2 SQ-2020-94643 | D41: 399 | E41: 379.05
B42: RDR80581AKU | C42: PCPROX PLUS ENROLL BLACK USB READER KBW | D42: 399 | E42: 199.5
B43: RDR80081AKU | C43: PCPROX PLUS ENROLL W/ICLASS ID KBW | D43: 399 | E43: 200
B44: Installation | C44: INSTALLATION RELYCO TROY PRINTERS
B45: ACC4D19 | C45: TECHNICAL CONSULTANT DAILY FEE | D45: 2166.57 | E45: 1615
B46: ACC4D1A | C46: TECHNICAL CONSULTANT HOURLY FEE | D46: 337.03 | E46: 256.5
B47: 7640019485 | C47: KMBS PROFESSIONAL PROJECT SERVICES | D47: 1 | E47: 1
B48: Delivery Management Y Soft Professional Services (200-4000+)
B49: ACC4GA9 | C49: DELIVERY MANAGEMENT 2000+ | D49: 37.75 | E49: 31.217
B50: Dispatcher Paragon Essentials
B51: Dispatcher Paragon Device Licenses, no support, no SLA (1-199)
B52: ACC4A01 | C52: ESSENTIALS1-49 | D52: 306.94 | E52: 268.033
B53: ACC4A0D | C53: ESSENTIALS50+ | D53: 252.77 | E53: 221.6635
B54: Dispatcher Paragon SW Support Maintenance - 1 year, Silver SLA (1-199)
B55: ACC4A9E | C55: ESSENTIALS+SLV_1YRSW-EXT1-49 | D55: 60.19 | E55: 53.1525
B56: ACC4A9U | C56: ESSENTIALS+SLV_1YRSW-EXT50+ | D56: 50.85 | E56: 44.1085
B57: Dispatcher Paragon SW Support Maintenance - 1 year, Gold SLA (1-199)
B58: ACC4AC1 | C58: ESSENTIALS+GLD_1YRSW-EXT1-49 | D58: 96.3 | E58: 84.8255
B59: ACC4ACD | C59: ESSENTIALS+GLD_1YRSW-EXT50+ | D59: 81.26 | E59: 70.1195
B60: Dispatcher Paragon Device Licenses including 1st year SW support, Silver SLA, (200-499)
B61: ACC4G01 | C61: ESSENTIALS+SLV_1YR200-499 | D61: 155.11 | E61: 213.75
B62: Dispatcher Paragon Device Licenses including 1st year SW support, Gold SLA, (200-3,999)
B63: ACC4G2C | C63: ESSENTIALS+GLD_1YR200+ | D63: 189.57 | E63: 261.25
B64: Dispatcher Paragon SW Support Maintenance - 1 year, Silver SLA (200-499)
B65: ACC4G1J | C65: ESSENTIALS+SLV_1YRSW-EXT200-499 | D65: 45.67 | E65: 37.7625
B66: Dispatcher Paragon SW Support Maintenance - 1 year, Gold SLA (200-3,999)
B67: ACC4G73 | C67: ESSENTIALS+GLD_1YRSW-EXT200+ | D67: 80.43 | E67: 66.5
B68: Card Readers
B69: R5427011136466GEN2 | C69: AU-205HGEN2 SQ-2020-94643 | D69: 399 | E69: 379.05
B70: RDR80581AKU | C70: PCPROX PLUS ENROLL BLACK USB READER KBW | D70: 399 | E70: 199.5
B71: RDR80081AKU | C71: PCPROX PLUS ENROLL W/ICLASS ID KBW | D71: 399 | E71: 200
B72: Installation | C72: INSTALLATION RELYCO TROY PRINTERS
B73: ACC4D19 | C73: TECHNICAL CONSULTANT DAILY FEE | D73: 2166.57 | E73: 1615
B74: ACC4D1A | C74: TECHNICAL CONSULTANT HOURLY FEE | D74: 337.03 | E74: 256.5
B75: 7640019485 | C75: KMBS PROFESSIONAL PROJECT SERVICES | D75: 1 | E75: 1
B76: Delivery Management Y Soft Professional Services (200-3,999)
B77: ACC4GA9 | C77: DELIVERY MANAGEMENT 2000+ | D77: 37.75 | E77: 31.217
B78: PSES Upgrade to Paragon
B79: PSES Upgrade - Dispatcher Paragon Device Licenses, no support, no SLA (1-199)
B80: A Screen Shot of the existing PageScope Enterprise Suire License Management (LMS) screen must be submitted with each order
B81: ACC4AF4 | C81: PSES UPGRADE1-49 | D81: 213.73 | E81: 160.42
B82: ACC4AF6 | C82: PSES UPGRADE1-49SUITE | D82: 177.28 | E82: 133.13
B83: ACC4AFG | C83: PSES UPGRADE50+ | D83: 176.74 | E83: 132.72
B84: ACC4AFJ | C84: PSES UPGRADE50+SUITE | D84: 146.92 | E84: 110.33
B85: PSES Upgrade - Dispatcher Software Support Maintenance Extension by 1 year, Silver SLA (1-199)
B86: ACC4AJ8 | C86: PSES UPGRADE SW ML1-49 1YR | D86: 118.97 | E86: 89.35
B87: ACC4AJA | C87: PSES UPGRADE SW ML1-49SUITE 1YR | D87: 97.89 | E87: 73.51
B88: ACC4AJM | C88: PSES UPGRADE SW ML50+ 1YR | D88: 97.89 | E88: 73.51
B89: ACC4AJP | C89: PSES UPGRADE SW ML50+SUITE 1YR | D89: 81.32 | E89: 61.08
B90: Installation | C90: INSTALLATION RELYCO TROY PRINTERS
B91: ACC4D19 | C91: TECHNICAL CONSULTANT DAILY FEE | D91: 2166.57 | E91: 1615
B92: ACC4D1A | C92: TECHNICAL CONSULTANT HOURLY FEE | D92: 337.03 | E92: 256.5
B93: 7640019485 | C93: KMBS PROFESSIONAL PROJECT SERVICES | D93: 1 | E93: 0.9925
B94: Konica Minolta Dispatcher Phoenix 7.0
B95: 7640021226 | C95: DP (1-9 ACTIVE INPUTS) | D95: 599 | E95: 599
B96: 7640021227 | C96: DP (10-49 ACTIVE INPUTS) | D96: 499 | E96: 499
B97: 7640021228 | C97: DP (50-199 ACTIVE INPUTS) | D97: 429 | E97: 429
B98: 7640021229 | C98: DP (200+ ACTIVE INPUTS) | D98: 389 | E98: 389
B99: Dispatcher Phoenix Maintenance
B100: 7640021234 | C100: DP (1-9 ACTIVE INPUTS) 1 YR MAINT | D100: 120 | E100: 120
B101: 7640021235 | C101: DP (1-9 ACTIVE INPUTS) 3 YR MAINT | D101: 342 | E101: 341.99
B102: 7640021236 | C102: DP (1-9 ACTIVE INPUTS) 5 YR MAINT | D102: 540 | E102: 540
B103: 7640021237 | C103: DP (10-49 ACTIVE INPUTS) 1 YR MAINT | D103: 100 | E103: 100
B104: 7640021238 | C104: DP (10-49 ACTIVE INPUTS) 3 YR MAINT | D104: 285 | E104: 285
B105: 7640021239 | C105: DP (10-49 ACTIVE INPUTS) 5 YR MAINT | D105: 450 | E105: 449.99
B106: 7640021240 | C106: DP (50-199 ACTIVE INPUTS) 1 YR MAINT | D106: 86 | E106: 85.99
B107: 7640021241 | C107: DP (50-199 ACTIVE INPUTS) 3 YR MAINT | D107: 245 | E107: 245
B108: 7640021242 | C108: DP (50-199 ACTIVE INPUTS) 5 YR MAINT | D108: 387 | E108: 387
B109: 7640021243 | C109: DP (200+ ACTIVE INPUTS) 1 YR MAINT | D109: 78 | E109: 77.99
B110: 7640021244 | C110: DP (200+ ACTIVE INPUTS) 3 YR MAINT | D110: 222 | E110: 221.99
B111: 7640021245 | C111: DP (200+ ACTIVE INPUTS) 5 YR MAINT | D111: 351 | E111: 351
B112: 7640021481 | C112: DP (1-9 ACTIVE INPUTS) 1 YR GOLD SLA | D112: 240 | E112: 240
B113: 7640021482 | C113: DP (10-49 ACTIVE INPUTS) 1 YR GOLD SLA | D113: 200 | E113: 200
B114: 7640021483 | C114: DP (50-199 ACTIVE INPUTS) 1 YR GOLD SLA | D114: 172 | E114: 172
B115: 7640021484 | C115: DP (200+ ACTIVE INPUTS) 1 YR GOLD SLA | D115: 156 | E115: 156
B116: Software Options
B117: 7640021258 | C117: DISPATCHER PHOENIX OFFICE PACKAGE | D117: 599 | E117: 599
B118: 7640021259 | C118: DISPATCHER PHOENIX LEGAL PACKAGE | D118: 599 | E118: 599
B119: 7640021260 | C119: DISPATCHER PHOENIX GOVERNMENT PACKAGE | D119: 1599 | E119: 1599
B120: 7640021261 | C120: DISPATCHER PHOENIX HEALTHCARE PACKAGE | D120: 3799 | E120: 3798.99
B121: 7640021262 | C121: DISPATCHER PHOENIX EDUCATION PACKAGE | D121: 1299 | E121: 1299
B122: 7640021263 | C122: DISPATCHER PHOENIX FINANCE PACKAGE | D122: 1199 | E122: 1199
B123: 7640021264 | C123: DISPATCHER PHOENIX ECM PACKAGE | D123: 8899 | E123: 8898.99
B124: 7640015729 | C124: DP ADVANCED BATES STAMP | D124: 459 | E124: 459
B125: 7640015730 | C125: DP OMNIPAGE LICENSE FOR CONVERT TO PDF | D125: 249 | E125: 249
B126: 7640015731 | C126: DP EMAIL BUNDLE | D126: 749 | E126: 749
B127: 7640015733 | C127: DP OMNIPAGE LICENSE FOR ADVANCED OCR | D127: 349 | E127: 349
B128: 7640015734 | C128: DP CONVERT TO OFFICE W/ OMNIPAGE | D128: 249 | E128: 249
B129: 7640015735 | C129: DP BARCODE PROCESSING W/ OMNIPAGE | D129: 249 | E129: 249
B130: 7640015736 | C130: DP 2D BARCODE PROCESSING W/ OMNIPAGE | D130: 249 | E130: 249
B131: 7640016310 | C131: DP REDACT & HIGHLIGHT/STRIKEOUT BUNDLE | D131: 249 | E131: 249
B132: 7640016313 | C132: DP KDK GENERATOR & KDK-PDL CONVERTER | D132: 449 | E132: 449
B133: 7640018452 | C133: DP ONBASE CONNECTOR | D133: 2199 | E133: 2199
B134: 7640018613 | C134: DP WORLDOX CONNECTOR | D134: 949 | E134: 949
B135: 7640018967 | C135: DP FORMS PROCESSING | D135: 899 | E135: 899
B136: 7640019160 | C136: DP COPY DEFENDER | D136: 349 | E136: 349
B137: 7640019202 | C137: DP WORKSHARE CONNECTOR | D137: 949 | E137: 949
B138: 7640020911 | C138: DP RELEASE2ME 1 DEVICE LICENSE | D138: 199 | E138: 199
B139: 7640019218 | C139: DP RELEASE2ME 3 DEVICE LICENSE | D139: 529 | E139: 529
B140: 7640020905 | C140: DP RELEASE2ME 5 DEVICE LICENSE | D140: 919 | E140: 919
B141: 7640020906 | C141: DP RELEASE2ME 10 DEVICE LICENSE | D141: 1629 | E141: 1629
B142: 7640020907 | C142: DP RELEASE2ME 25 DEVICE LICENSE | D142: 4139 | E142: 4138.99
B143: 7640020908 | C143: DP RELEASE2ME 50 DEVICE LICENSE | D143: 7909 | E143: 7909
B144: 7640020909 | C144: DP RELEASE2ME 100 DEVICE LICENSE | D144: 14919 | E144: 14918.99
B145: 7640020910 | C145: DP RELEASE2ME 500 DEVICE LICENSE | D145: 69999 | E145: 69998.95
B146: 7640019115 | C146: DP RX SHIELD | D146: 349 | E146: 349
B147: 7640019236 | C147: DP BUBBLE GRADER | D147: 1749 | E147: 1749
B148: 7640019538 | C148: DP MOBILE 10 USER LICENSES | D148: 199 | E148: 199
B149: 7640019539 | C149: DP MOBILE 25 USER LICENSES | D149: 579 | E149: 579
B150: 7640019540 | C150: DP MOBILE 50 USER LICENSES | D150: 1149 | E150: 1149
B151: 7640019541 | C151: DP MOBILE 100 USER LICENSES | D151: 2149 | E151: 2149
B152: 7640019542 | C152: DP MOBILE 250 USER LICENSES | D152: 4449 | E152: 4449
B153: 7640019543 | C153: DP MOBILE 500 USER LICENSES | D153: 7449 | E153: 7449
B154: 7640019544 | C154: DP MOBILE 1000 USER LICENSES | D154: 7949 | E154: 7949
B155: 7640019634 | C155: DISPATCHER PHOENIX OCR ASIAN FONT PACK | D155: 49 | E155: 48.6325
B156: 7640020015 | C156: DP WORKSTATION (W/ 1 USER LICENSE) | D156: 549 | E156: 549
B157: 7640020016 | C157: DP BATCH INDEX PKG (W/ 1 USER LICENSE) | D157: 549 | E157: 549
B158: 7640020078 | C158: DP WORKSTATION 1 ADD. USER LICENSE | D158: 549 | E158: 549
B159: 7640020082 | C159: DP BATCH INDEX PKG 1 ADD. USER LICENSE | D159: 549 | E159: 549
B160: 7640020023 | C160: DP WORKSTATION 10 USER LICENSES | D160: 5349 | E160: 5349
B161: 7640020027 | C161: DP BATCH INDEXING 10 USER LICENSES | D161: 5349 | E161: 5349
B162: 7640020615 | C162: DP HL7 BUNDLE | D162: 449 | E162: 449
B163: 7640020739 | C163: DP PDF PROCESSING BUNDLE | D163: 349 | E163: 349
B164: 7640020844 | C164: DISPATCHER PHOENIX LASERFICHE CONNECTOR | D164: 949 | E164: 949
B165: 7640020848 | C165: DP WINDOWS FAX CONNECTOR | D165: 749 | E165: 749
B166: 7640020901 | C166: DP GUARDIAN CONNECTOR | D166: 949 | E166: 949
B167: 7640021577 | C167: DP DOC-CLASSIFIER | D167: 899 | E167: 899
B168: Software Options Maintenance
B169: 7640021272 | C169: DP OFFICE PKG 1YR. MAINTENANCE | D169: 120 | E169: 120
B170: 7640021273 | C170: DP OFFICE PKG 3YR. MAINTENANCE | D170: 342 | E170: 341.99
B171: 7640021274 | C171: DP OFFICE PKG 5YR. MAINTENANCE | D171: 540 | E171: 540
B172: 7640021275 | C172: DP LEGAL PKG 1YR. MAINTENANCE | D172: 120 | E172: 120
B173: 7640021276 | C173: DP LEGAL PKG 3YR. MAINTENANCE | D173: 342 | E173: 341.99
B174: 7640021277 | C174: DP LEGAL PKG 5YR. MAINTENANCE | D174: 540 | E174: 540
B175: 7640021278 | C175: DP GOVERNMENT PKG 1YR. MAINTENANCE | D175: 320 | E175: 320
B176: 7640021279 | C176: DP GOVERNMENT PKG 3YR. MAINTENANCE | D176: 912 | E176: 912
B177: 7640021280 | C177: DP GOVERNMENT PKG 5YR. MAINTENANCE | D177: 1440 | E177: 1440
B178: 7640021281 | C178: DP HEALTHCARE PKG 1YR. MAINTENANCE | D178: 760 | E178: 760
B179: 7640021282 | C179: DP HEALTHCARE PKG 3YR. MAINTENANCE | D179: 2166 | E179: 2165.99
B180: 7640021283 | C180: DP HEALTHCARE PKG 5YR. MAINTENANCE | D180: 3420 | E180: 3420
B181: 7640021284 | C181: DP EDUCATION PKG 1YR. MAINTENANCE | D181: 260 | E181: 260
B182: 7640021285 | C182: DP EDUCATION PKG 3YR. MAINTENANCE | D182: 741 | E182: 741
B183: 7640021286 | C183: DP EDUCATION PKG 5YR. MAINTENANCE | D183: 1170 | E183: 1169.99
B184: 7640021287 | C184: DP FINANCE PKG 1YR. MAINTENANCE | D184: 240 | E184: 240
B185: 7640021288 | C185: DP FINANCE PKG 3YR. MAINTENANCE | D185: 684 | E185: 684
B186: 7640021289 | C186: DP FINANCE PKG 5YR. MAINTENANCE | D186: 1080 | E186: 1080
B187: 7640021290 | C187: DP ECM PKG 1YR. MAINTENANCE | D187: 1780 | E187: 1780
B188: 7640021291 | C188: DP ECM PKG 3YR. MAINTENANCE | D188: 5073 | E188: 5073
B189: 7640021292 | C189: DP ECM PKG 5YR. MAINTENANCE | D189: 8010 | E189: 8009.99
B190: 7640021326 | C190: DP MAINTENANCE REACTIVATION KEY | D190: 198 | E190: 197.99
B191: 7640021570 | C191: DP OFFICE PACKAGE 1 YR GOLD SLA | D191: 240 | E191: 240
B192: 7640021571 | C192: DP LEGAL PACKAGE 1 YR GOLD SLA | D192: 240 | E192: 240
B193: 7640021572 | C193: DP GOVERNMENT PACKAGE 1 YR GOLD SLA | D193: 640 | E193: 640
B194: 7640021573 | C194: DP HEALTHCARE PACKAGE 1 YR GOLD SLA | D194: 1520 | E194: 1520
B195: 7640021574 | C195: DP EDUCATION PACKAGE 1 YR GOLD SLA | D195: 520 | E195: 520
B196: 7640021575 | C196: DP FINANCE PACKAGE 1 YR GOLD SLA | D196: 480 | E196: 480
B197: 7640021576 | C197: DP ECM PACKAGE 1 YR GOLD SLA | D197: 3560 | E197: 3560
B198: 7640015766 | C198: DP AD. BATES STAMP MAINTENANCE 1 YR | D198: 92 | E198: 92
B199: 7640015767 | C199: DP OMNIPAGE CONVERT TO PDF MAINT (1 YR) | D199: 50 | E199: 49.625
B200: 7640015768 | C200: DP EMAIL BUNDLE SOFTWARE MAINTNANCE 1 YR | D200: 150 | E200: 149.99
B201: 7640015770 | C201: DP OMNIPAGE ADVANCED OCR MAINT (1 YR) | D201: 70 | E201: 69.99
B202: 7640015771 | C202: DP CONVERT TO OFFICE OMNIPAGE MNT (1 YR) | D202: 50 | E202: 49.625
... 6214 more rows
